lending/lending_fUSD_20240219
["ID","MTS","AMOUNT","RATE_DAILY","PERIOD"]
[314444751,1708360242056,-5821.581418,0.0003989,14]
[314444752,1708360242065,-163.722511,0.0003989,14]
[314444753,1708360242075,-151.0,0.0003989,14]
[314444754,1708360242084,-163.722511,0.0003989,14]
[314444755,1708360242094,-151.0,0.0003989,14]
[314444756,1708360242103,-169.310522,0.0003989,14]
[314444757,1708360242113,-151.0,0.0003989,14]
[314444758,1708360242122,-151.0,0.0003989,14]
[314444759,1708360242132,-169.310522,0.0003989,14]
[314444760,1708360242142,-151.0,0.0003989,7]
[314444761,1708360242151,-151.0,0.0003989,14]
[314444762,1708360242160,-151.0,0.0003989,7]
[314444763,1708360242170,-151.0,0.0003989,14]
[314444764,1708360242179,-151.0,0.0003989,14]
[314444765,1708360242189,-151.0,0.0003989,14]
[314444766,1708360242198,-173.814253,0.0003989,14]
[314444767,1708360242207,-173.814253,0.0003989,14]
[314444768,1708360242217,-151.0,0.0003989,14]
[314444769,1708360242226,-151.0,0.0003989,14]
[314444770,1708360242236,-220.45298215,0.0003989,2]
[314444771,1708360242245,-1448.051877,0.0003989,14]
[314444772,1708360242254,-1448.051877,0.0003989,14]
[314444773,1708360242264,-151.0,0.0003989,14]
[314444774,1708360242273,-4927.0,0.0003989,4]
[314444775,1708360242283,-250.0,0.00039899,2]
[314444776,1708360242293,-150.0,0.00039899,2]
[314444777,1708360242303,-300.0,0.00039899,7]
[314444778,1708360242312,-450.0,0.00039899,12]
[314444779,1708360242321,-600.0,0.00039899,17]
[314444780,1708360242330,-321.45276217,0.00039899,2]
[314444781,1708360242340,-242.31616,0.00039899,2]
[314444782,1708360242349,-157.74235033,0.00039899,30]
[314444783,1708360242358,-500.0,0.000399,2]
[314444784,1708360242369,-500.0,0.000399,2]
[314444785,1708360242378,-350.0,0.000399,2]
[314444786,1708360242389,-500.0,0.000399,2]
[314444787,1708360242398,-500.0,0.000399,2]
[314444788,1708360242407,-500.0,0.000399,2]
[314444789,1708360242417,-500.0,0.000399,2]
[314444790,1708360242426,-500.0,0.000399,2]
[314444791,1708360242436,-500.0,0.000399,2]
[314444792,1708360242445,-500.0,0.000399,2]
[314444793,1708360242454,-500.0,0.000399,2]
[314444794,1708360242464,-250.0,0.000399,2]
[314444795,1708360242473,-500.0,0.000399,2]
[314444796,1708360242482,-500.0,0.000399,2]
[314444797,1708360242491,-500.0,0.000399,2]
[314444798,1708360242501,-500.0,0.000399,2]
[314444799,1708360242510,-500.0,0.000399,2]
[314444800,1708360242519,-500.0,0.000399,2]
[314444801,1708360242529,-500.0,0.000399,2]
[314444802,1708360242539,-500.0,0.000399,2]
[314444803,1708360242549,-500.0,0.000399,2]
[314444804,1708360242562,-500.0,0.000399,2]
[314444805,1708360242573,-500.0,0.000399,2]
[314444806,1708360242583,-500.0,0.000399,2]
[314444807,1708360242592,-500.0,0.000399,2]
[314444808,1708360242603,-500.0,0.000399,2]
[314444809,1708360242613,-500.0,0.000399,2]
[314444810,1708360242623,-500.0,0.000399,2]
[314444811,1708360242635,-500.0,0.000399,2]
[314444812,1708360242646,-500.0,0.000399,2]
[314444814,1708360242655,-500.0,0.000399,2]
[314444815,1708360242664,-500.0,0.000399,2]
[314444816,1708360242674,-500.0,0.000399,2]
[314444817,1708360242683,-500.0,0.000399,2]
[314444819,1708360242693,-500.0,0.000399,2]
[314444820,1708360242702,-500.0,0.000399,2]
[314444821,1708360242712,-500.0,0.000399,2]
[314444822,1708360242722,-500.0,0.000399,2]
[314444823,1708360242731,-500.0,0.000399,2]
[314444824,1708360242740,-500.0,0.000399,2]
[314444825,1708360242750,-500.0,0.000399,2]
[314444826,1708360242759,-500.0,0.000399,2]
[314444827,1708360242768,-500.0,0.000399,2]
[314444828,1708360242778,-500.0,0.000399,2]
[314444830,1708360242787,-500.0,0.000399,2]
[314444831,1708360242796,-500.0,0.000399,2]
[314444832,1708360242805,-500.0,0.000399,2]
[314444833,1708360242814,-500.0,0.000399,2]
[314444834,1708360242824,-500.0,0.000399,2]
[314444835,1708360242833,-500.0,0.000399,2]
[314444836,1708360242842,-500.0,0.000399,2]
[314444837,1708360242851,-500.0,0.000399,2]
[314444838,1708360242860,-500.0,0.000399,2]
[314444839,1708360242870,-500.0,0.000399,2]
[314444840,1708360242879,-500.0,0.000399,2]
[314444841,1708360242888,-500.0,0.000399,2]
[314444842,1708360242898,-500.0,0.000399,2]
[314444843,1708360242908,-500.0,0.000399,2]
[314444844,1708360242917,-500.0,0.000399,2]
[314444845,1708360242927,-500.0,0.000399,2]
[314444846,1708360242937,-500.0,0.000399,2]
[314444847,1708360242946,-500.0,0.000399,2]
[314444848,1708360242955,-500.0,0.000399,2]
[314444849,1708360242965,-500.0,0.000399,2]
[314444850,1708360242974,-500.0,0.000399,2]
[314444851,1708360242983,-500.0,0.000399,2]
[314444852,1708360242992,-500.0,0.000399,2]
[314444853,1708360243003,-500.0,0.000399,2]
[314444854,1708360243012,-500.0,0.000399,2]
[314444855,1708360243022,-500.0,0.000399,2]
[314444856,1708360243031,-500.0,0.000399,2]
[314444857,1708360243040,-500.0,0.000399,2]
[314444858,1708360243050,-500.0,0.000399,2]
[314444859,1708360243060,-500.0,0.000399,2]
[314444860,1708360243069,-500.0,0.000399,2]
[314444861,1708360243078,-500.0,0.000399,2]
[314444862,1708360243087,-500.0,0.000399,2]
[314444863,1708360243096,-500.0,0.000399,2]
[314444864,1708360243106,-500.0,0.000399,2]
[314444865,1708360243115,-500.0,0.000399,2]
[314444866,1708360243125,-500.0,0.000399,2]
[314444867,1708360243134,-500.0,0.000399,2]
[314444868,1708360243144,-500.0,0.000399,2]
[314444869,1708360243153,-500.0,0.000399,2]
[314444870,1708360243163,-500.0,0.000399,2]
[314444871,1708360243172,-500.0,0.000399,2]
[314444872,1708360243181,-500.0,0.000399,2]
[314444873,1708360243190,-500.0,0.000399,2]
[314444874,1708360243199,-500.0,0.000399,2]
[314444875,1708360243209,-500.0,0.000399,2]
[314444876,1708360243218,-500.0,0.000399,2]
[314444877,1708360243227,-500.0,0.000399,2]
[314444878,1708360243237,-500.0,0.000399,2]
[314444879,1708360243246,-500.0,0.000399,2]
[314444880,1708360243255,-500.0,0.000399,2]
[314444881,1708360243264,-500.0,0.000399,2]
[314444882,1708360243274,-500.0,0.000399,2]
[314444883,1708360243284,-500.0,0.000399,2]
[314444884,1708360243293,-500.0,0.000399,2]
[314444885,1708360243303,-500.0,0.000399,2]
[314444886,1708360243313,-500.0,0.000399,2]
[314444887,1708360243322,-500.0,0.000399,2]
[314444888,1708360243331,-500.0,0.000399,2]
[314444889,1708360243340,-500.0,0.000399,2]
[314444890,1708360243350,-500.0,0.000399,2]
[314444891,1708360243359,-500.0,0.000399,2]
[314444892,1708360243369,-500.0,0.000399,2]
[314444893,1708360243378,-500.0,0.000399,2]
[314444894,1708360243387,-500.0,0.000399,2]
[314444895,1708360243397,-500.0,0.000399,2]
[314444896,1708360243406,-500.0,0.000399,2]
[314444897,1708360243416,-500.0,0.000399,2]
[314444898,1708360243425,-500.0,0.000399,2]
[314444899,1708360243434,-500.0,0.000399,2]
[314444900,1708360243443,-500.0,0.000399,2]
[314444901,1708360243452,-500.0,0.000399,2]
[314444902,1708360243461,-500.0,0.000399,2]
[314444903,1708360243471,-500.0,0.000399,2]
[314444904,1708360243480,-500.0,0.000399,2]
[314444905,1708360243489,-500.0,0.000399,2]
[314444906,1708360243498,-500.0,0.000399,2]
[314444907,1708360243507,-500.0,0.000399,2]
[314444908,1708360243517,-500.0,0.000399,2]
[314444909,1708360243526,-500.0,0.000399,2]
[314444910,1708360243535,-500.0,0.000399,2]
[314444911,1708360243544,-500.0,0.000399,2]
[314444912,1708360243556,-500.0,0.000399,2]
[314444913,1708360243565,-500.0,0.000399,2]
[314444914,1708360243574,-500.0,0.000399,2]
[314444915,1708360243583,-500.0,0.000399,2]
[314444916,1708360243593,-500.0,0.000399,2]
[314444917,1708360243602,-500.0,0.000399,2]
[314444918,1708360243611,-500.0,0.000399,2]
[314444919,1708360243622,-500.0,0.000399,2]
[314444920,1708360243631,-500.0,0.000399,2]
[314444921,1708360243641,-500.0,0.000399,2]
[314444922,1708360243651,-500.0,0.000399,2]
[314444923,1708360243660,-500.0,0.000399,2]
[314444924,1708360243670,-500.0,0.000399,2]
[314444925,1708360243679,-500.0,0.000399,2]
[314444926,1708360243689,-500.0,0.000399,2]
[314444927,1708360243699,-500.0,0.000399,2]
[314444928,1708360243708,-500.0,0.000399,2]
[314444929,1708360243717,-500.0,0.000399,2]
[314444930,1708360243727,-500.0,0.000399,2]
[314444931,1708360243736,-500.0,0.000399,2]
[314444932,1708360243745,-500.0,0.000399,2]
[314444933,1708360243754,-500.0,0.000399,2]
[314444934,1708360243764,-500.0,0.000399,2]
[314444935,1708360243773,-500.0,0.000399,2]
[314444936,1708360243782,-22769.9875965,0.000399,2]
[314444937,1708360243791,-258.83760791,0.000399,3]
[314444938,1708360243801,-259819.36834,0.000399,3]
[314444939,1708360243810,-200.0,0.000399,13]
[314444940,1708360243820,-1034651.03163341,0.000399,3]
[314444941,1708360243829,-1009.00007466,0.000399,4]
[314444942,1708360243838,-150.0,0.000399,15]
[314444943,1708360243847,-565.37,0.000399,3]
[314444944,1708360243856,-151.0,0.000399,7]
[314444945,1708360243866,-151.0,0.000399,14]
[314444946,1708360243875,-151.0,0.000399,14]
[314444947,1708360243884,-151.0,0.000399,14]
[314444948,1708360243894,-151.0,0.000399,14]
[314444949,1708360243903,-151.0,0.000399,7]
[314444950,1708360243912,-151.0,0.000399,14]
[314444951,1708360243921,-151.0,0.000399,14]
[314444952,1708360243931,-190.709697,0.000399,14]
[314444953,1708360243940,-190.709697,0.000399,14]
[314444954,1708360243949,-229.75566993,0.000399,2]
[314444955,1708360243958,-151.0,0.000399,14]
[314444956,1708360243967,-151.0,0.000399,14]
[314444957,1708360243976,-151.0,0.000399,14]
[314444958,1708360243985,-151.0,0.000399,7]
[314444959,1708360243995,-151.0,0.000399,7]
[314444960,1708360244004,-151.0,0.000399,3]
[314444961,1708360244013,-1254.98684293,0.000399,2]
[314444962,1708360244022,-151.0,0.000399,14]
[314444963,1708360244032,-151.0,0.000399,14]
[314444964,1708360244041,-151.0,0.000399,14]
[314444965,1708360244050,-406.253186,0.000399,14]
[314444966,1708360244059,-406.253186,0.000399,14]
[314444967,1708360244068,-279.883018,0.000399,14]
[314444968,1708360244078,-279.883018,0.000399,14]
[314444969,1708360244087,-705.800469,0.000399,14]
[314444970,1708360244096,-705.800469,0.000399,14]
[314444971,1708360244105,-151.0,0.000399,14]
[314444972,1708360244115,-151.0,0.000399,14]
[314444973,1708360244124,-1694.787059,0.000399,14]
[314444974,1708360244134,-1694.787059,0.000399,14]
[314444975,1708360244143,-603.212313,0.000399,14]
[314444976,1708360244153,-603.212313,0.000399,14]
[314444977,1708360244162,-999.912961,0.000399,14]
[314444978,1708360244171,-999.912961,0.000399,14]
[314444979,1708360244180,-196.455857,0.000399,14]
[314444980,1708360244189,-196.455857,0.000399,14]
[314444981,1708360244201,-275.634485,0.000399,14]
[314444982,1708360244210,-151.0,0.000399,14]
[314444983,1708360244219,-275.634485,0.000399,14]
[314444984,1708360244228,-301.489201,0.000399,2]
[314444985,1708360244238,-301.489201,0.000399,2]
[314444986,1708360244247,-151.0,0.000399,14]
[314444987,1708360244257,-151.0,0.000399,14]
[314444988,1708360244266,-151.0,0.000399,14]
[314444989,1708360244275,-151.0,0.000399,14]
[314444990,1708360244285,-151.0,0.000399,14]
[314444991,1708360244294,-198.53844736,0.000399,4]
[314444992,1708360244303,-878.867355,0.000399,14]
[314444993,1708360244312,-878.867355,0.000399,14]
[314444994,1708360244322,-878.867355,0.000399,14]
[314444995,1708360244331,-878.867355,0.000399,14]
[314444996,1708360244341,-375.199825,0.000399,14]
[314444997,1708360244350,-375.199825,0.000399,14]
[314444998,1708360244359,-375.199825,0.000399,14]
[314444999,1708360244368,-375.199825,0.000399,14]
[314445000,1708360244378,-151.0,0.000399,14]
[314445001,1708360244390,-151.0,0.000399,14]
[314445002,1708360244399,-682.280234,0.000399,14]
[314445003,1708360244408,-682.280234,0.000399,14]
[314445004,1708360244418,-151.0,0.000399,14]
[314445005,1708360244427,-682.280234,0.000399,14]
[314445006,1708360244436,-682.280234,0.000399,14]
[314445007,1708360244445,-151.0,0.000399,14]
[314445008,1708360244454,-875.261303,0.000399,14]
[314445009,1708360244463,-875.261303,0.000399,14]
[314445010,1708360244472,-875.261303,0.000399,14]
[314445011,1708360244608,-1272.785329,0.000399,14]
[314445012,1708360244618,-875.261303,0.000399,14]
[314445013,1708360244627,-1272.785329,0.000399,14]
[314445014,1708360244637,-1272.785329,0.000399,14]
[314445015,1708360244647,-1272.785329,0.000399,14]
[314445016,1708360244656,-151.0,0.000399,14]
[314445017,1708360244666,-325.764441,0.000399,14]
[314445018,1708360244675,-325.764441,0.000399,14]
[314445019,1708360244684,-325.764441,0.000399,14]
[314445020,1708360244693,-325.764441,0.000399,14]
[314445021,1708360244702,-151.0,0.000399,14]
[314445022,1708360244711,-151.0,0.000399,14]
[314445023,1708360244721,-225.662302,0.000399,14]
[314445024,1708360244730,-225.662302,0.000399,14]
[314445025,1708360244739,-181.24837,0.000399,14]
[314445026,1708360244748,-181.24837,0.000399,14]
[314445027,1708360244757,-151.0,0.000399,14]
[314445028,1708360244767,-151.0,0.000399,14]
[314445029,1708360244776,-181.24837,0.000399,14]
[314445030,1708360244785,-181.24837,0.000399,14]
[314445031,1708360244794,-403.242136,0.000399,14]
[314445032,1708360244803,-403.242136,0.000399,14]
[314445033,1708360244812,-151.0,0.000399,14]
[314445034,1708360244821,-151.0,0.000399,14]
[314445035,1708360244830,-403.242136,0.000399,14]
[314445036,1708360244839,-403.242136,0.000399,14]
[314445037,1708360244848,-1766.129696,0.000399,14]
[314445038,1708360244857,-1766.129696,0.000399,14]
[314445039,1708360244866,-1766.129696,0.000399,14]
[314445040,1708360244876,-1766.129696,0.000399,14]
[314445041,1708360244885,-268.22844,0.000399,14]
[314445042,1708360244894,-268.22844,0.000399,14]
[314445043,1708360244903,-151.0,0.000399,14]
[314445044,1708360244912,-151.0,0.000399,14]
[314445045,1708360244922,-268.22844,0.000399,14]
[314445046,1708360244931,-268.22844,0.000399,14]
[314445047,1708360244940,-151.0,0.000399,14]
[314445048,1708360244950,-151.0,0.000399,14]
[314445049,1708360244959,-201.530845,0.000399,14]
[314445050,1708360244968,-201.530845,0.000399,14]
[314445051,1708360244977,-201.530845,0.000399,14]
[314445052,1708360244986,-201.530845,0.000399,14]
[314445053,1708360244995,-179.168121,0.000399,14]
[314445054,1708360245004,-179.168121,0.000399,14]
[314445055,1708360245013,-151.0,0.000399,14]
[314445056,1708360245022,-179.168121,0.000399,14]
[314445057,1708360245031,-179.168121,0.000399,14]
[314445058,1708360245040,-152.055412,0.000399,14]
[314445059,1708360245049,-152.055412,0.000399,14]
[314445060,1708360245058,-2168.789579,0.000399,14]
[314445061,1708360245067,-2168.789579,0.000399,14]
[314445062,1708360245076,-151.0,0.000399,14]
[314445063,1708360245085,-151.0,0.000399,14]
[314445064,1708360245094,-152.055412,0.000399,14]
[314445065,1708360245103,-152.055412,0.000399,14]
[314445066,1708360245112,-2168.789579,0.000399,14]
[314445067,1708360245122,-2168.789579,0.000399,14]
[314445068,1708360245131,-151.0,0.000399,14]
[314445069,1708360245140,-216.180226,0.000399,14]
[314445070,1708360245149,-210.280858,0.000399,14]
[314445071,1708360245158,-210.280858,0.000399,14]
[314445072,1708360245168,-151.0,0.000399,14]
[314445073,1708360245177,-151.0,0.000399,14]
[314445074,1708360245186,-210.280858,0.000399,14]
[314445075,1708360245195,-210.280858,0.000399,14]
[314445076,1708360245204,-151.0,0.000399,14]
[314445077,1708360245213,-151.0,0.000399,14]
[314445078,1708360245222,-283.0,0.000399,14]
[314445079,1708360245232,-151.0,0.000399,14]
[314445080,1708360245241,-151.0,0.000399,14]
[314445081,1708360245250,-151.0,0.000399,14]
[314445082,1708360245259,-151.0,0.000399,14]
[314445083,1708360245268,-151.0,0.000399,14]
[314445084,1708360245277,-264.716455,0.000399,14]
[314445085,1708360245286,-264.716455,0.000399,14]
[314445086,1708360245295,-264.716455,0.000399,14]
[314445087,1708360245304,-264.716455,0.000399,14]
[314445088,1708360245313,-218.169546,0.000399,14]
[314445089,1708360245322,-218.169546,0.000399,14]
[314445090,1708360245331,-151.0,0.000399,14]
[314445091,1708360245340,-151.0,0.000399,14]
[314445092,1708360245350,-218.169546,0.000399,14]
[314445093,1708360245359,-218.169546,0.000399,14]
[314445094,1708360245367,-151.0,0.000399,14]
[314445095,1708360245377,-151.0,0.000399,14]
[314445096,1708360245386,-151.0,0.000399,14]
[314445097,1708360245395,-151.0,0.000399,14]
[314445098,1708360245404,-6564.760835,0.000399,14]
[314445099,1708360245413,-6564.760835,0.000399,14]
[314445100,1708360245423,-151.0,0.000399,14]
[314445101,1708360245432,-151.0,0.000399,14]
[314445102,1708360245441,-1000.0,0.000399,17]
[314445103,1708360245450,-6564.760835,0.000399,14]
[314445104,1708360245459,-6564.760835,0.000399,14]
[314445105,1708360245468,-978.913743,0.000399,14]
[314445106,1708360245477,-978.913743,0.000399,14]
[314445107,1708360245486,-978.913743,0.000399,14]
[314445108,1708360245495,-151.0,0.000399,14]
[314445109,1708360245504,-978.913743,0.000399,14]
[314445110,1708360245513,-151.0,0.000399,14]
[314445111,1708360245522,-234.983147,0.000399,14]
[314445112,1708360245531,-151.0,0.000399,14]
[314445113,1708360245540,-151.0,0.000399,14]
[314445114,1708360245550,-151.0,0.000399,14]
[314445115,1708360245562,-151.0,0.000399,14]
[314445116,1708360245571,-151.0,0.000399,14]
[314445118,1708360245581,-151.0,0.000399,14]
[314445119,1708360245590,-185.672444,0.000399,14]
[314445120,1708360245600,-185.672444,0.000399,14]
[314445121,1708360245609,-185.672444,0.000399,14]
[314445122,1708360245618,-185.672444,0.000399,14]
[314445123,1708360245627,-151.0,0.000399,14]
[314445125,1708360245639,-151.0,0.000399,14]
[314445126,1708360245649,-151.0,0.000399,14]
[314445127,1708360245658,-151.0,0.000399,14]
[314445128,1708360245667,-151.0,0.000399,14]
[314445129,1708360245677,-151.0,0.000399,14]
[314445130,1708360245686,-198.306835,0.000399,14]
[314445131,1708360245695,-560.046223,0.000399,14]
[314445132,1708360245704,-560.046223,0.000399,14]
[314445133,1708360245713,-560.046223,0.000399,14]
[314445134,1708360245722,-560.046223,0.000399,14]
[314445135,1708360245732,-5821.581418,0.000399,14]
[314445137,1708360245742,-5821.581418,0.000399,14]
[314445138,1708360245751,-163.722511,0.000399,14]
[314445139,1708360245760,-151.0,0.000399,14]
[314445141,1708360245769,-163.722511,0.000399,14]
[314445143,1708360245778,-151.0,0.000399,14]
[314445145,1708360245787,-169.310522,0.000399,14]
[314445147,1708360245796,-151.0,0.000399,14]
[314445149,1708360245805,-151.0,0.000399,14]
[314445152,1708360245814,-169.310522,0.000399,14]
[314445153,1708360245823,-151.0,0.000399,7]
[314445154,1708360245832,-151.0,0.000399,7]
[314445155,1708360245841,-151.0,0.000399,14]
[314445156,1708360245850,-151.0,0.000399,14]
[314445157,1708360245859,-151.0,0.000399,14]
[314445158,1708360245868,-173.814253,0.000399,14]
[314445159,1708360245878,-151.0,0.000399,14]
[314445160,1708360245887,-173.814253,0.000399,14]
[314445161,1708360245896,-151.0,0.000399,14]
[314445162,1708360245905,-1448.051877,0.000399,14]
[314445163,1708360245914,-1448.051877,0.000399,14]
[314445164,1708360245923,-3856.02617922,0.00039902,13]
[314445165,1708360245933,-1000.0,0.0003992,17]
[314445166,1708360245942,-1000.0,0.0003994,17]
[314445167,1708360245951,-158.0,0.00039952,7]
[314445168,1708360245960,-1000.0,0.0003996,17]
[314445169,1708360245970,-3856.02617922,0.00039969,13]
[314445170,1708360245980,-1000.0,0.0003998,17]
[314445171,1708360245990,-156.85,0.00039989,2]
[314445172,1708360245999,-639.19326019,0.0003999,4]
[314445173,1708360246008,-44072.01704696,0.0003999,2]
[314445174,1708360246017,-3319.32799788,0.00039998,2]
[314445175,1708360246027,-300.02,0.00039998,2]
[314445176,1708360246037,-340.22828288,0.00039998,30]
[314445177,1708360246046,-320.8501624,0.00039999,30]
[314445178,1708360246055,-151.0,0.00039999,14]
[314445179,1708360246064,-151.0,0.00039999,7]
[314445180,1708360246073,-151.0,0.00039999,14]
[314445181,1708360246083,-151.0,0.00039999,14]
[314445182,1708360246092,-190.709697,0.00039999,14]
[314445183,1708360246101,-190.709697,0.00039999,14]
[314445184,1708360246110,-151.0,0.00039999,14]
[314445185,1708360246119,-151.0,0.00039999,14]
[314445186,1708360246129,-151.0,0.00039999,14]
[314445187,1708360246138,-151.0,0.00039999,7]
[314445188,1708360246147,-151.0,0.00039999,7]
[314445189,1708360246156,-151.0,0.00039999,3]
[314445190,1708360246165,-151.0,0.00039999,14]
[314445191,1708360246174,-151.0,0.00039999,14]
[314445192,1708360246184,-151.0,0.00039999,14]
[314445193,1708360246192,-406.253186,0.00039999,14]
[314445194,1708360246202,-406.253186,0.00039999,14]
[314445195,1708360246210,-279.883018,0.00039999,14]
[314445196,1708360246219,-279.883018,0.00039999,14]
[314445197,1708360246229,-705.800469,0.00039999,14]
[314445198,1708360246239,-705.800469,0.00039999,14]
[314445199,1708360246248,-151.0,0.00039999,14]
[314445200,1708360246257,-1694.787059,0.00039999,14]
[314445201,1708360246266,-1694.787059,0.00039999,14]
[314445202,1708360246275,-603.212313,0.00039999,14]
[314445203,1708360246284,-603.212313,0.00039999,14]
[314445204,1708360246294,-999.912961,0.00039999,14]
[314445205,1708360246303,-999.912961,0.00039999,14]
[314445206,1708360246312,-230.12520523,0.00039999,2]
[314445207,1708360246322,-230.12520523,0.00039999,2]
[314445208,1708360246331,-230.12520523,0.00039999,2]
[314445209,1708360246340,-313.74014338,0.00039999,2]
[314445210,1708360246349,-313.74014338,0.00039999,2]
[314445211,1708360246359,-313.74014338,0.00039999,2]
[314445212,1708360246368,-100000.0,0.0004,20]
[314445213,1708360246378,-993455.63955343,0.0004,30]
[314445214,1708360246749,-577.91955371,0.0004,30]
[314445215,1708360246901,-1233.09931396,0.0004,30]
[314445216,1708360246957,-782.99279705,0.0004,30]
[314445217,1708360246968,-1209.03547937,0.0004,30]
[314445218,1708360247107,-10156.185,0.0004,30]
[314445219,1708360247237,-151.0,0.0003989,14]
[314445220,1708360247246,-543.88291274,0.0004,30]
[314445221,1708360247272,-621.37506382,0.0004,30]
[314445222,1708360247283,-2375.72466641,0.0004,30]
[314445223,1708360247294,-3651.14661413,0.0004,30]
[314445224,1708360247305,-19235.65419639,0.0004,30]
[314445225,1708360247316,-724.23404533,0.0004,30]
[314445226,1708360247331,-4819.65,0.0004,30]
[314445227,1708360247343,-7778.5,0.0004,30]
[314445228,1708360247359,-179893.3918853,0.0004,30]
[314445230,1708360247617,-1255.0,0.00039361,2]
[314445231,1708360247626,-19270.87910762,0.00039899,4]
[314445232,1708360247636,-170322.37196397,0.0004,30]
[314445233,1708360247675,-46083.28389989,0.0004,30]
[314445234,1708360247777,-427.18400019,0.0004,30]
[314445235,1708360247788,-10454.41421798,0.0004,30]
[314445236,1708360247800,-400.0,0.0004,30]
[314445237,1708360247925,-1474.7548254,0.0004,30]
[314445238,1708360247937,-258.48,0.0004,30]
[314445239,1708360247948,-2837.4296,0.0004,30]
[314445240,1708360247959,-3847.24595011,0.0004,30]
[314445241,1708360273265,2985.0582,0.00032299,2]
[314445242,1708360481010,176.85,0.00016712,2]
[314445243,1708361079670,299.286228,0.00016712,2]
[314445244,1708361140199,150.0,0.0002722,120]
[314445245,1708361178484,-200.0,0.00027084,2]
[314445246,1708361178505,-400.0,0.00029999,2]
[314445247,1708361225147,-135.40994288,0.00029999,2]
[314445248,1708361225168,-198.53844736,0.0003,4]
[314445249,1708361225191,-97.06067447,0.00033297,15]
[314445259,1708361348107,-509.39467465,0.00025,3]
[314445260,1708361349173,-40.60532535,0.00025,3]
[314445264,1708361370102,-1249.66312996,0.00033297,15]
[314445265,1708361370125,-8000.0,0.00033299,4]
[314445266,1708361370148,-150.0,0.00033299,3]
[314445267,1708361370168,-1859.0,0.000333,3]
[314445268,1708361370187,-156.17259878,0.00034519,4]
[314445269,1708361370207,-1208.570429,0.0003452,2]
[314445270,1708361370227,-1812.855644,0.00034794,2]
[314445271,1708361370247,-2417.140859,0.00034931,2]
[314445272,1708361370267,-3021.426074,0.00035068,2]
[314445273,1708361370288,-375.14,0.0003522,2]
[314445274,1708361370309,-4229.996504,0.00035342,2]
[314445275,1708361370330,-5207.37,0.00035342,2]
[314445279,1708361372797,719.36076778,0.00034518,4]